[Event "Titled Tuesday Blitz November 29 Early 2022"]
[White "Manukyan, Sargis A."]
[Black "Riehle, Marco"]
[WhiteFideId "13303970"]
[BlackFideId "12904392"]
[WhiteElo "2187"]
[BlackElo "2462"]
[Result "0-1"]
[Round "07"]
[TimeControl "180+1"]
[Date "2022.11.30"]
[WhiteClock "0:00:09"]
[BlackClock "0:00:49"]

1. Nf3 {[%clk 0:03:00]}  d5 {[%clk 0:02:57]} 2. c4 {[%clk 0:03:01]}  e6 {[%clk 0:02:57]} 3. d4 {[%clk 0:03:00]}  Nf6 {[%clk 0:02:56]} 4. g3 {[%clk 0:03:01]}  dxc4 {[%clk 0:02:56]} 5. Bg2 {[%clk 0:03:01]}  c5 {[%clk 0:02:56]} 6. O-O {[%clk 0:02:59]}  Nc6 {[%clk 0:02:55]} 7. dxc5 {[%clk 0:02:58]}  Qxd1 {[%clk 0:02:56]} 8. Rxd1 {[%clk 0:02:58]}  Bxc5 {[%clk 0:02:57]} 9. Nbd2 {[%clk 0:02:51]}  c3 {[%clk 0:02:57]} 10. bxc3 {[%clk 0:02:51]}  Bd7 {[%clk 0:02:57]} 11. Nb3 {[%clk 0:02:50]}  Be7 {[%clk 0:02:57]} 12. c4 {[%clk 0:02:50]}  O-O {[%clk 0:02:56]} 13. Bf4 {[%clk 0:02:36]}  Rac8 {[%clk 0:02:51]} 14. c5 {[%clk 0:02:26]}  Nd5 {[%clk 0:02:46]} 15. Bd6 {[%clk 0:02:25]}  Rfd8 {[%clk 0:02:38]} 16. Rd2 {[%clk 0:02:11]}  Bf6 {[%clk 0:02:31]} 17. Rc1 {[%clk 0:02:02]}  Nc3 {[%clk 0:02:20]} 18. Ne1 {[%clk 0:01:22]}  Nb5 {[%clk 0:01:45]} 19. e4 {[%clk 0:01:02]}  Nxd6 {[%clk 0:01:44]} 20. cxd6 {[%clk 0:01:00]}  Nb4 {[%clk 0:01:40]} 21. Rc7 {[%clk 0:00:47]}  Bc6 {[%clk 0:01:33]} 22. f4 {[%clk 0:00:46]}  Bc3 {[%clk 0:01:23]} 23. Rd1 {[%clk 0:00:34]}  Na6 {[%clk 0:01:12]} 24. Rxc8 {[%clk 0:00:31]}  Rxc8 {[%clk 0:01:13]} 25. e5 {[%clk 0:00:28]}  f6 {[%clk 0:01:09]} 26. Bxc6 {[%clk 0:00:23]}  bxc6 {[%clk 0:01:10]} 27. Nd3 {[%clk 0:00:20]}  fxe5 {[%clk 0:01:09]} 28. Nxe5 {[%clk 0:00:20]}  Nb4 {[%clk 0:01:06]} 29. d7 {[%clk 0:00:17]}  Rd8 {[%clk 0:01:05]} 30. Nc5 {[%clk 0:00:17]}  Bxe5 {[%clk 0:01:03]} 31. fxe5 {[%clk 0:00:16]}  Nd5 {[%clk 0:01:03]} 32. Rb1 {[%clk 0:00:12]}  Nb6 {[%clk 0:01:03]} 33. Rf1 {[%clk 0:00:11]}  h6 {[%clk 0:00:59]} 34. Nxe6 {[%clk 0:00:09]}  Rxd7 {[%clk 0:00:59]} 35. Rf8+ {[%clk 0:00:06]}  Kh7 {[%clk 0:00:58]} 36. Nf4 {[%clk 0:00:06]}  Re7 {[%clk 0:00:56]} 37. e6 {[%clk 0:00:06]}  Nd5 {[%clk 0:00:56]} 38. h4 {[%clk 0:00:05]}  Nxf4 {[%clk 0:00:56]} 39. Rxf4 {[%clk 0:00:04]}  Rxe6 {[%clk 0:00:57]} 40. Rc4 {[%clk 0:00:05]}  Re2 {[%clk 0:00:56]} 41. Ra4 {[%clk 0:00:04]}  Re7 {[%clk 0:00:55]} 42. Kf2 {[%clk 0:00:05]}  Kg6 {[%clk 0:00:54]} 43. Kf3 {[%clk 0:00:05]}  Kf5 {[%clk 0:00:53]} 44. Ra6 {[%clk 0:00:06]}  Rc7 {[%clk 0:00:53]} 45. g4+ {[%clk 0:00:06]}  Ke5 {[%clk 0:00:53]} 46. Ke3 {[%clk 0:00:06]}  g5 {[%clk 0:00:50]} 47. hxg5 {[%clk 0:00:05]}  hxg5 {[%clk 0:00:50]} 48. Ra5+ {[%clk 0:00:06]}  c5 {[%clk 0:00:51]} 49. Ra6 {[%clk 0:00:05]}  Rh7 {[%clk 0:00:49]} 50. Rg6 {[%clk 0:00:04]}  Rh3+ {[%clk 0:00:49]} 51. Kd2 {[%clk 0:00:04]}  Kf4 {[%clk 0:00:49]} 52. Rg7 {[%clk 0:00:02]}  Ra3 {[%clk 0:00:48]} 53. Kc2 {[%clk 0:00:01]}  Rxa2+ {[%clk 0:00:48]} 54. Kb3 {[%clk 0:00:02]}  Ra5 {[%clk 0:00:49]} 55. Kc4 {[%clk 0:00:03]}  Kxg4 {[%clk 0:00:49]} 56. Rf7 {[%clk 0:00:03]}  Kg3 {[%clk 0:00:49]} 57. Rf1 {[%clk 0:00:04]}  g4 {[%clk 0:00:49]} 58. Rg1+ {[%clk 0:00:04]}  Kf3 {[%clk 0:00:50]} 59. Rb1 {[%clk 0:00:05]}  g3 {[%clk 0:00:50]} 60. Rb3+ {[%clk 0:00:06]}  Kg4 {[%clk 0:00:49]} 61. Rb2 {[%clk 0:00:07]}  Kh3 {[%clk 0:00:50]} 62. Kd5 {[%clk 0:00:07]}  g2 {[%clk 0:00:49]} 63. Rb1 {[%clk 0:00:08]}  Kh2 {[%clk 0:00:49]} 64. Rg1 {[%clk 0:00:08]}  Kxg1 {[%clk 0:00:49]} 65. Kc4 {[%clk 0:00:09]}  Kf2 {[%clk 0:00:49]} 0-1


[Site "https://www.chess.com"]

[Event "Titled Tuesday Blitz November 29 Early 2022"]
[White "Mgeladze, Tamaz"]
[Black "Odegov, Artem"]
[WhiteFideId "13601202"]
[BlackFideId "34183644"]
[WhiteElo "2288"]
[BlackElo "2298"]
[Result "1-0"]
[Round "07"]
[TimeControl "180+1"]
[Date "2022.11.30"]
[WhiteClock "0:01:40"]
[BlackClock "0:00:30"]

1. c4 {[%clk 0:02:58]}  Nf6 {[%clk 0:02:59]} 2. Nc3 {[%clk 0:02:53]}  e6 {[%clk 0:02:57]} 3. e4 {[%clk 0:02:52]}  d5 {[%clk 0:02:58]} 4. e5 {[%clk 0:02:52]}  Nfd7 {[%clk 0:02:58]} 5. d4 {[%clk 0:02:51]}  c5 {[%clk 0:02:55]} 6. cxd5 {[%clk 0:02:44]}  exd5 {[%clk 0:02:53]} 7. Nf3 {[%clk 0:02:42]}  Nc6 {[%clk 0:02:51]} 8. Bb5 {[%clk 0:02:40]}  cxd4 {[%clk 0:02:47]} 9. Nxd4 {[%clk 0:02:37]}  Ndxe5 {[%clk 0:02:39]} 10. O-O {[%clk 0:02:33]}  Bc5 {[%clk 0:02:37]} 11. Re1 {[%clk 0:02:31]}  O-O {[%clk 0:02:33]} 12. Nxc6 {[%clk 0:02:27]}  Nxc6 {[%clk 0:02:33]} 13. Qxd5 {[%clk 0:02:24]}  Qxd5 {[%clk 0:01:23]} 14. Nxd5 {[%clk 0:02:25]}  Bf5 {[%clk 0:01:20]} 15. Be3 {[%clk 0:02:19]}  Bxe3 {[%clk 0:01:19]} 16. Rxe3 {[%clk 0:02:19]}  Rfe8 {[%clk 0:01:12]} 17. Rae1 {[%clk 0:02:15]}  Rxe3 {[%clk 0:01:11]} 18. Rxe3 {[%clk 0:02:16]}  Kf8 {[%clk 0:01:11]} 19. Bxc6 {[%clk 0:02:03]}  bxc6 {[%clk 0:01:12]} 20. Nc3 {[%clk 0:02:03]}  Rd8 {[%clk 0:01:04]} 21. f3 {[%clk 0:02:02]}  Be6 {[%clk 0:00:51]} 22. Kf2 {[%clk 0:02:00]}  c5 {[%clk 0:00:51]} 23. Ke1 {[%clk 0:01:56]}  Rb8 {[%clk 0:00:44]} 24. Re2 {[%clk 0:01:51]}  h5 {[%clk 0:00:32]} 25. Kd1 {[%clk 0:01:50]}  h4 {[%clk 0:00:31]} 26. Kc1 {[%clk 0:01:49]}  h3 {[%clk 0:00:30]} 27. gxh3 {[%clk 0:01:43]}  Bxh3 {[%clk 0:00:31]} 28. Re5 {[%clk 0:01:43]}  c4 {[%clk 0:00:30]} 29. Rh5 {[%clk 0:01:40]} 1-0


[Site "https://www.chess.com"]

[Event "Titled Tuesday Blitz November 29 Early 2022"]
[White "Mikhalsky, Vladimir"]
[Black "Tasev, Dejan"]
[WhiteFideId "14144352"]
[BlackFideId "936618"]
[WhiteElo "2271"]
[BlackElo "2256"]
[Result "1-0"]
[Round "07"]
[TimeControl "180+1"]
[Date "2022.11.30"]
[WhiteClock "0:00:12"]
[BlackClock "0:00:12"]

1. d4 {[%clk 0:02:50]}  Nf6 {[%clk 0:02:59]} 2. c4 {[%clk 0:02:49]}  g6 {[%clk 0:02:58]} 3. f3 {[%clk 0:02:48]}  Bg7 {[%clk 0:02:59]} 4. e4 {[%clk 0:02:48]}  d6 {[%clk 0:02:58]} 5. Nc3 {[%clk 0:02:48]}  O-O {[%clk 0:02:58]} 6. Be3 {[%clk 0:02:48]}  c5 {[%clk 0:02:59]} 7. Nge2 {[%clk 0:02:47]}  cxd4 {[%clk 0:02:56]} 8. Nxd4 {[%clk 0:02:46]}  a6 {[%clk 0:02:56]} 9. Qd2 {[%clk 0:02:47]}  Nc6 {[%clk 0:02:56]} 10. b3 {[%clk 0:02:46]}  Bd7 {[%clk 0:02:55]} 11. Be2 {[%clk 0:02:45]}  Nxd4 {[%clk 0:02:55]} 12. Bxd4 {[%clk 0:02:44]}  Bc6 {[%clk 0:02:56]} 13. Nd5 {[%clk 0:02:43]}  Bxd5 {[%clk 0:02:55]} 14. exd5 {[%clk 0:02:40]}  Nd7 {[%clk 0:02:54]} 15. Bxg7 {[%clk 0:02:39]}  Kxg7 {[%clk 0:02:52]} 16. Qd4+ {[%clk 0:02:38]}  f6 {[%clk 0:02:49]} 17. f4 {[%clk 0:02:35]}  Qb6 {[%clk 0:02:47]} 18. Qxb6 {[%clk 0:02:34]}  Nxb6 {[%clk 0:02:47]} 19. Bg4 {[%clk 0:02:22]}  f5 {[%clk 0:02:44]} 20. Bf3 {[%clk 0:02:20]}  a5 {[%clk 0:02:44]} 21. Kd2 {[%clk 0:02:10]}  Nd7 {[%clk 0:02:44]} 22. Rhe1 {[%clk 0:02:08]}  Kf7 {[%clk 0:02:41]} 23. Re3 {[%clk 0:01:54]}  Nc5 {[%clk 0:02:40]} 24. Rae1 {[%clk 0:01:54]}  Rfe8 {[%clk 0:02:39]} 25. Kc3 {[%clk 0:01:53]}  b6 {[%clk 0:02:33]} 26. Bd1 {[%clk 0:01:52]}  Ne4+ {[%clk 0:02:16]} 27. Kd4 {[%clk 0:01:47]}  Nc5 {[%clk 0:02:13]} 28. a3 {[%clk 0:01:36]}  Nd7 {[%clk 0:01:52]} 29. h3 {[%clk 0:01:33]}  Nf6 {[%clk 0:01:46]} 30. g4 {[%clk 0:01:31]}  fxg4 {[%clk 0:01:24]} 31. hxg4 {[%clk 0:01:30]}  Nd7 {[%clk 0:01:17]} 32. b4 {[%clk 0:01:21]}  axb4 {[%clk 0:01:17]} 33. axb4 {[%clk 0:01:21]}  Ra2 {[%clk 0:01:10]} 34. g5 {[%clk 0:01:21]}  Rf2 {[%clk 0:01:05]} 35. Rf3 {[%clk 0:01:15]}  Rxf3 {[%clk 0:01:04]} 36. Bxf3 {[%clk 0:01:15]}  Ra8 {[%clk 0:01:03]} 37. Bg4 {[%clk 0:01:13]}  Nf8 {[%clk 0:01:03]} 38. Rh1 {[%clk 0:01:02]}  Ra4 {[%clk 0:00:59]} 39. Kc3 {[%clk 0:00:57]}  Ra3+ {[%clk 0:00:59]} 40. Kb2 {[%clk 0:00:54]}  Rg3 {[%clk 0:00:59]} 41. Bc8 {[%clk 0:00:50]}  Rf3 {[%clk 0:00:53]} 42. Rh4 {[%clk 0:00:49]}  Kg7 {[%clk 0:00:50]} 43. Kc2 {[%clk 0:00:42]}  Re3 {[%clk 0:00:43]} 44. Kb2 {[%clk 0:00:39]}  Rf3 {[%clk 0:00:43]} 45. Kc2 {[%clk 0:00:40]}  Re3 {[%clk 0:00:40]} 46. Kb2 {[%clk 0:00:40]}  e6 {[%clk 0:00:36]} 47. dxe6 {[%clk 0:00:39]}  Nxe6 {[%clk 0:00:36]} 48. Bxe6 {[%clk 0:00:38]}  Rxe6 {[%clk 0:00:37]} 49. Kc3 {[%clk 0:00:20]}  Re4 {[%clk 0:00:30]} 50. Kd3 {[%clk 0:00:20]}  Re1 {[%clk 0:00:27]} 51. Kd4 {[%clk 0:00:20]}  Rd1+ {[%clk 0:00:28]} 52. Ke4 {[%clk 0:00:20]}  Rd2 {[%clk 0:00:25]} 53. b5 {[%clk 0:00:20]}  Kg8 {[%clk 0:00:23]} 54. Rh1 {[%clk 0:00:20]}  Kf7 {[%clk 0:00:20]} 55. Ra1 {[%clk 0:00:20]}  Ke6 {[%clk 0:00:19]} 56. Ra7 {[%clk 0:00:19]}  d5+ {[%clk 0:00:18]} 57. cxd5+ {[%clk 0:00:18]}  Rxd5 {[%clk 0:00:18]} 58. Rxh7 {[%clk 0:00:18]}  Rxb5 {[%clk 0:00:18]} 59. Rg7 {[%clk 0:00:16]}  Rb4+ {[%clk 0:00:19]} 60. Kf3 {[%clk 0:00:17]}  Rb3+ {[%clk 0:00:14]} 61. Kg4 {[%clk 0:00:16]}  Rb1 {[%clk 0:00:13]} 62. Rxg6+ {[%clk 0:00:17]}  Kf7 {[%clk 0:00:13]} 63. Rf6+ {[%clk 0:00:16]}  Kg7 {[%clk 0:00:14]} 64. Rc6 {[%clk 0:00:16]}  b5 {[%clk 0:00:14]} 65. f5 {[%clk 0:00:16]}  Rg1+ {[%clk 0:00:12]} 66. Kf4 {[%clk 0:00:16]}  Rf1+ {[%clk 0:00:13]} 67. Ke5 {[%clk 0:00:16]}  Re1+ {[%clk 0:00:13]} 68. Kd4 {[%clk 0:00:16]}  b4 {[%clk 0:00:13]} 69. Rc7+ {[%clk 0:00:15]}  Kf8 {[%clk 0:00:13]} 70. f6 {[%clk 0:00:15]}  b3 {[%clk 0:00:13]} 71. g6 {[%clk 0:00:14]}  b2 {[%clk 0:00:13]} 72. Rc8+ {[%clk 0:00:13]}  Re8 {[%clk 0:00:13]} 73. g7+ {[%clk 0:00:13]}  Kf7 {[%clk 0:00:12]} 74. Rxe8 {[%clk 0:00:12]} 1-0


[Site "https://www.chess.com"]

[Event "Titled Tuesday Blitz November 29 Early 2022"]
[White "Mogranzini, Roberto"]
[Black "Leve, Nitai"]
[WhiteFideId "810894"]
[BlackFideId "2006898"]
[WhiteElo "2469"]
[BlackElo "2144"]
[Result "1-0"]
[Round "07"]
[TimeControl "180+1"]
[Date "2022.11.30"]
[WhiteClock "0:00:09"]
[BlackClock "0:00:01"]

1. e4 {[%clk 0:03:00]}  e6 {[%clk 0:02:55]} 2. d4 {[%clk 0:02:58]}  d5 {[%clk 0:02:50]} 3. Bd3 {[%clk 0:02:51]}  dxe4 {[%clk 0:02:49]} 4. Bxe4 {[%clk 0:02:52]}  Nf6 {[%clk 0:02:49]} 5. Bf3 {[%clk 0:02:51]}  c5 {[%clk 0:02:49]} 6. Ne2 {[%clk 0:02:51]}  cxd4 {[%clk 0:02:49]} 7. Qxd4 {[%clk 0:02:52]}  Nbd7 {[%clk 0:02:46]} 8. Nbc3 {[%clk 0:02:34]}  Bc5 {[%clk 0:02:43]} 9. Qf4 {[%clk 0:02:31]}  O-O {[%clk 0:02:39]} 10. O-O {[%clk 0:02:31]}  Qe7 {[%clk 0:02:15]} 11. Be3 {[%clk 0:02:19]}  Bd6 {[%clk 0:02:14]} 12. Qh4 {[%clk 0:02:17]}  Ne5 {[%clk 0:02:14]} 13. Be4 {[%clk 0:02:10]}  Nxe4 {[%clk 0:02:08]} 14. Qxe4 {[%clk 0:02:09]}  Bd7 {[%clk 0:02:01]} 15. Nd4 {[%clk 0:01:49]}  f5 {[%clk 0:00:46]} 16. Qxb7 {[%clk 0:01:49]}  Rab8 {[%clk 0:00:37]} 17. Qxa7 {[%clk 0:01:44]}  Rxb2 {[%clk 0:00:22]} 18. Rad1 {[%clk 0:01:33]}  Bb8 {[%clk 0:00:14]} 19. Qa5 {[%clk 0:01:29]}  Qh4 {[%clk 0:00:13]} 20. h3 {[%clk 0:01:03]}  f4 {[%clk 0:00:13]} 21. Bc1 {[%clk 0:00:58]}  f3 {[%clk 0:00:12]} 22. Rfe1 {[%clk 0:00:15]}  fxg2 {[%clk 0:00:10]} 23. f4 {[%clk 0:00:10]}  Qxh3 {[%clk 0:00:07]} 24. Rxe5 {[%clk 0:00:10]}  Qh1+ {[%clk 0:00:02]} 25. Kf2 {[%clk 0:00:11]}  Qh2 {[%clk 0:00:02]} 26. Rg1 {[%clk 0:00:10]}  Rxf4+ {[%clk 0:00:01]} 27. Bxf4 {[%clk 0:00:10]}  Qxf4+ {[%clk 0:00:02]} 28. Nf3 {[%clk 0:00:10]}  Rxc2+ {[%clk 0:00:02]} 29. Ne2 {[%clk 0:00:10]}  Bxe5 {[%clk 0:00:01]} 30. Qxe5 {[%clk 0:00:09]} 1-0


[Site "https://www.chess.com"]

[Event "Titled Tuesday Blitz November 29 Early 2022"]
[White "Moskvin, Anatoly"]
[Black "Quinones Garcia, Santiago"]
[WhiteFideId "24199990"]
[BlackFideId "4408497"]
[WhiteElo "2079"]
[BlackElo "2249"]
[Result "0-1"]
[Round "07"]
[TimeControl "180+1"]
[Date "2022.11.30"]
[WhiteClock "0:00:25"]
[BlackClock "0:01:19"]

1. b3 {[%clk 0:03:00]}  d5 {[%clk 0:02:56]} 2. Bb2 {[%clk 0:03:01]}  c6 {[%clk 0:02:56]} 3. g3 {[%clk 0:02:59]}  Nf6 {[%clk 0:02:56]} 4. Bg2 {[%clk 0:02:59]}  Bf5 {[%clk 0:02:56]} 5. d3 {[%clk 0:02:59]}  Nbd7 {[%clk 0:02:56]} 6. Nd2 {[%clk 0:03:00]}  e5 {[%clk 0:02:56]} 7. e4 {[%clk 0:02:59]}  Be6 {[%clk 0:02:54]} 8. Qe2 {[%clk 0:02:56]}  Bd6 {[%clk 0:02:54]} 9. Ngf3 {[%clk 0:02:54]}  Qc7 {[%clk 0:02:40]} 10. h3 {[%clk 0:02:54]}  O-O {[%clk 0:02:40]} 11. O-O {[%clk 0:02:49]}  Rfe8 {[%clk 0:02:39]} 12. Rfe1 {[%clk 0:02:25]}  d4 {[%clk 0:02:18]} 13. Nh4 {[%clk 0:02:22]}  g6 {[%clk 0:02:16]} 14. c4 {[%clk 0:01:57]}  dxc3 {[%clk 0:02:15]} 15. Bxc3 {[%clk 0:01:58]}  Bc5 {[%clk 0:02:12]} 16. Nhf3 {[%clk 0:01:55]}  a5 {[%clk 0:02:08]} 17. d4 {[%clk 0:01:53]}  exd4 {[%clk 0:02:07]} 18. Nxd4 {[%clk 0:01:54]}  Bf8 {[%clk 0:02:04]} 19. Rac1 {[%clk 0:01:50]}  Bg7 {[%clk 0:02:03]} 20. Ba1 {[%clk 0:01:23]}  a4 {[%clk 0:01:59]} 21. e5 {[%clk 0:01:14]}  Nd5 {[%clk 0:01:58]} 22. Nb5 {[%clk 0:01:01]}  Qb6 {[%clk 0:01:55]} 23. Nd6 {[%clk 0:01:01]}  Rf8 {[%clk 0:01:52]} 24. N2c4 {[%clk 0:01:00]}  Qa6 {[%clk 0:01:50]} 25. f4 {[%clk 0:00:54]}  axb3 {[%clk 0:01:43]} 26. axb3 {[%clk 0:00:53]}  Qa2 {[%clk 0:01:43]} 27. Qf3 {[%clk 0:00:47]}  Nc5 {[%clk 0:01:33]} 28. Rb1 {[%clk 0:00:44]}  Nb4 {[%clk 0:01:24]} 29. Bc3 {[%clk 0:00:29]}  Bd5 {[%clk 0:01:20]} 30. Qd1 {[%clk 0:00:25]}  Qxg2# {[%clk 0:01:19]} 0-1


[Site "https://www.chess.com"]

[Event "Titled Tuesday Blitz November 29 Early 2022"]
[White "Mrudul Dehankar"]
[Black "Clawitter, Craig"]
[WhiteFideId "25096990"]
[BlackFideId "2023105"]
[WhiteElo "2068"]
[BlackElo "2259"]
[Result "0-1"]
[Round "07"]
[TimeControl "180+1"]
[Date "2022.11.30"]
[WhiteClock "0:00:40"]
[BlackClock "0:00:18"]

1. e4 {[%clk 0:02:40]}  e6 {[%clk 0:02:57]} 2. Nf3 {[%clk 0:02:37]}  d5 {[%clk 0:02:56]} 3. Nc3 {[%clk 0:02:38]}  Nf6 {[%clk 0:02:56]} 4. e5 {[%clk 0:02:38]}  Nfd7 {[%clk 0:02:56]} 5. d4 {[%clk 0:02:38]}  c5 {[%clk 0:02:57]} 6. dxc5 {[%clk 0:02:36]}  Nc6 {[%clk 0:02:57]} 7. Bf4 {[%clk 0:02:36]}  Bxc5 {[%clk 0:02:55]} 8. Bd3 {[%clk 0:02:32]}  f6 {[%clk 0:02:56]} 9. exf6 {[%clk 0:02:32]}  Nxf6 {[%clk 0:02:56]} 10. Qd2 {[%clk 0:02:32]}  O-O {[%clk 0:02:54]} 11. O-O {[%clk 0:02:31]}  a6 {[%clk 0:02:50]} 12. a4 {[%clk 0:02:15]}  Bd7 {[%clk 0:02:27]} 13. Rad1 {[%clk 0:02:13]}  Rc8 {[%clk 0:02:20]} 14. Ne5 {[%clk 0:01:48]}  Be8 {[%clk 0:01:49]} 15. Rde1 {[%clk 0:01:38]}  Nb4 {[%clk 0:01:46]} 16. Bg5 {[%clk 0:01:26]}  Nxd3 {[%clk 0:01:36]} 17. Qxd3 {[%clk 0:01:26]}  Qb6 {[%clk 0:01:26]} 18. Bxf6 {[%clk 0:01:00]}  Rxf6 {[%clk 0:01:24]} 19. Ng4 {[%clk 0:01:00]}  Rf8 {[%clk 0:00:51]} 20. a5 {[%clk 0:00:59]}  Qxb2 {[%clk 0:00:43]} 21. Rxe6 {[%clk 0:00:57]}  Qxc3 {[%clk 0:00:32]} 22. Qxc3 {[%clk 0:00:54]}  Bxf2+ {[%clk 0:00:32]} 23. Rxf2 {[%clk 0:00:52]}  Rxc3 {[%clk 0:00:32]} 24. Rd2 {[%clk 0:00:44]}  Bb5 {[%clk 0:00:21]} 25. Ne3 {[%clk 0:00:40]}  Rxe3 {[%clk 0:00:18]} 0-1


[Site "https://www.chess.com"]

[Event "Titled Tuesday Blitz November 29 Early 2022"]
[White "Oparin, Grigoriy"]
[Black "Postny, Evgeny"]
[WhiteFideId "24125890"]
[BlackFideId "2804344"]
[WhiteElo "2639"]
[BlackElo "2476"]
[Result "1-0"]
[Round "07"]
[TimeControl "180+1"]
[Date "2022.11.30"]
[WhiteClock "0:00:16"]
[BlackClock "0:00:08"]

1. e4 {[%clk 0:03:00]}  e5 {[%clk 0:02:58]} 2. Nf3 {[%clk 0:03:01]}  Nc6 {[%clk 0:02:58]} 3. Bb5 {[%clk 0:03:01]}  a6 {[%clk 0:02:59]} 4. Ba4 {[%clk 0:03:01]}  Nf6 {[%clk 0:02:59]} 5. Nc3 {[%clk 0:03:02]}  b5 {[%clk 0:02:55]} 6. Bb3 {[%clk 0:03:02]}  Be7 {[%clk 0:02:55]} 7. d3 {[%clk 0:03:00]}  d6 {[%clk 0:02:55]} 8. a3 {[%clk 0:03:00]}  O-O {[%clk 0:02:50]} 9. Nd5 {[%clk 0:02:59]}  Be6 {[%clk 0:02:45]} 10. Bg5 {[%clk 0:02:48]}  Na5 {[%clk 0:02:35]} 11. Ba2 {[%clk 0:02:46]}  c6 {[%clk 0:02:34]} 12. Nxe7+ {[%clk 0:02:42]}  Qxe7 {[%clk 0:02:34]} 13. b4 {[%clk 0:02:22]}  Nb7 {[%clk 0:02:33]} 14. O-O {[%clk 0:02:17]}  Nd8 {[%clk 0:02:25]} 15. c4 {[%clk 0:02:14]}  a5 {[%clk 0:02:18]} 16. cxb5 {[%clk 0:01:43]}  Bxa2 {[%clk 0:02:09]} 17. Rxa2 {[%clk 0:01:44]}  axb4 {[%clk 0:02:09]} 18. Qb3 {[%clk 0:01:29]}  Qe6 {[%clk 0:02:01]} 19. Rb1 {[%clk 0:01:30]}  Qxb3 {[%clk 0:01:43]} 20. Rxb3 {[%clk 0:01:30]}  c5 {[%clk 0:01:43]} 21. Bxf6 {[%clk 0:01:26]}  gxf6 {[%clk 0:01:44]} 22. Rbb2 {[%clk 0:01:17]}  bxa3 {[%clk 0:01:31]} 23. Rb3 {[%clk 0:01:16]}  Ne6 {[%clk 0:01:28]} 24. Raxa3 {[%clk 0:01:16]}  Rxa3 {[%clk 0:01:27]} 25. Rxa3 {[%clk 0:01:17]}  Rb8 {[%clk 0:01:26]} 26. Rb3 {[%clk 0:01:13]}  Rb6 {[%clk 0:01:12]} 27. g3 {[%clk 0:01:10]}  Nc7 {[%clk 0:01:11]} 28. Nd2 {[%clk 0:01:06]}  Rxb5 {[%clk 0:01:09]} 29. Ra3 {[%clk 0:01:03]}  Rb7 {[%clk 0:00:34]} 30. Nc4 {[%clk 0:01:00]}  Nb5 {[%clk 0:00:33]} 31. Ra8+ {[%clk 0:01:00]}  Kg7 {[%clk 0:00:33]} 32. Rd8 {[%clk 0:00:51]}  Ra7 {[%clk 0:00:25]} 33. Ne3 {[%clk 0:00:51]}  Nd4 {[%clk 0:00:25]} 34. Rxd6 {[%clk 0:00:52]}  Ra3 {[%clk 0:00:23]} 35. Rd8 {[%clk 0:00:49]}  h6 {[%clk 0:00:16]} 36. Rd5 {[%clk 0:00:30]}  Rxd3 {[%clk 0:00:14]} 37. Rxc5 {[%clk 0:00:30]}  Rd2 {[%clk 0:00:11]} 38. Kg2 {[%clk 0:00:27]}  Kg6 {[%clk 0:00:11]} 39. h4 {[%clk 0:00:26]}  h5 {[%clk 0:00:10]} 40. Rc8 {[%clk 0:00:26]}  Kg7 {[%clk 0:00:11]} 41. Rd8 {[%clk 0:00:22]}  Ra2 {[%clk 0:00:10]} 42. Rd6 {[%clk 0:00:20]}  Re2 {[%clk 0:00:07]} 43. Nd5 {[%clk 0:00:20]}  f5 {[%clk 0:00:07]} 44. exf5 {[%clk 0:00:15]}  Nxf5 {[%clk 0:00:08]} 45. Ra6 {[%clk 0:00:15]}  Rd2 {[%clk 0:00:08]} 46. Nf6 {[%clk 0:00:15]}  Ne3+ {[%clk 0:00:08]} 47. Kf3 {[%clk 0:00:15]}  Ng4 {[%clk 0:00:08]} 48. Nxh5+ {[%clk 0:00:16]} 1-0


[Site "https://www.chess.com"]

[Event "Titled Tuesday Blitz November 29 Early 2022"]
[White "Ovchinnikov, Vsevolod"]
[Black "Remizov, Yaroslav"]
[WhiteFideId "24176842"]
[BlackFideId "34134015"]
[WhiteElo "2376"]
[BlackElo "2414"]
[Result "1-0"]
[Round "07"]
[TimeControl "180+1"]
[Date "2022.11.30"]
[WhiteClock "0:00:27"]
[BlackClock "0:00:06"]

1. Nf3 {[%clk 0:03:00]}  Nf6 {[%clk 0:02:59]} 2. c4 {[%clk 0:03:01]}  b6 {[%clk 0:02:57]} 3. g3 {[%clk 0:03:00]}  Bb7 {[%clk 0:02:58]} 4. Bg2 {[%clk 0:03:01]}  e6 {[%clk 0:02:57]} 5. b3 {[%clk 0:03:01]}  Be7 {[%clk 0:02:56]} 6. Bb2 {[%clk 0:03:02]}  O-O {[%clk 0:02:57]} 7. O-O {[%clk 0:03:02]}  c5 {[%clk 0:02:57]} 8. e3 {[%clk 0:02:59]}  d5 {[%clk 0:02:47]} 9. Qe2 {[%clk 0:02:58]}  dxc4 {[%clk 0:02:45]} 10. bxc4 {[%clk 0:02:58]}  Nbd7 {[%clk 0:02:39]} 11. Nc3 {[%clk 0:02:57]}  Qc7 {[%clk 0:02:29]} 12. Ne1 {[%clk 0:02:41]}  Bxg2 {[%clk 0:02:25]} 13. Nxg2 {[%clk 0:02:42]}  Qc6 {[%clk 0:02:19]} 14. d3 {[%clk 0:02:30]}  Ne5 {[%clk 0:02:00]} 15. f4 {[%clk 0:02:29]}  Ng6 {[%clk 0:01:51]} 16. g4 {[%clk 0:02:28]}  Rfd8 {[%clk 0:01:35]} 17. g5 {[%clk 0:02:22]}  Ne8 {[%clk 0:01:35]} 18. h4 {[%clk 0:02:16]}  f5 {[%clk 0:01:19]} 19. h5 {[%clk 0:01:18]}  Nf8 {[%clk 0:01:19]} 20. e4 {[%clk 0:01:19]}  Qd7 {[%clk 0:01:05]} 21. Rad1 {[%clk 0:01:17]}  a6 {[%clk 0:00:47]} 22. a4 {[%clk 0:01:16]}  Nd6 {[%clk 0:00:34]} 23. Rfe1 {[%clk 0:01:00]}  Re8 {[%clk 0:00:28]} 24. Ba1 {[%clk 0:00:39]}  Nb7 {[%clk 0:00:19]} 25. Qb2 {[%clk 0:00:34]}  e5 {[%clk 0:00:13]} 26. Nd5 {[%clk 0:00:31]}  Bd6 {[%clk 0:00:11]} 27. Nxb6 {[%clk 0:00:29]}  Qd8 {[%clk 0:00:05]} 28. Nxa8 {[%clk 0:00:28]}  Qxa8 {[%clk 0:00:06]} 29. exf5 {[%clk 0:00:27]} 1-0


[Site "https://www.chess.com"]